{"text_format":"1","workbook":"xlsx","n_sheets":3,"sheets":["CarteUGA","Listes","Données"],"not_rendered":{"charts":4,"images":2,"macros":1,"external_links":0,"defined_names":1,"comments":0,"pivot_tables":0},"unopened":[],"bounds":{"document_bytes":16777216,"sheet_cells":100000,"rows_first":2000,"rows_last":500,"rows_between":2000,"halvings":0,"cell_chars":16384,"cell_head_chars":4096},"cells_cut":0,"cells_raw":0,"read":"whole","date_system":"1900"}

{"sheet":"CarteUGA","index":0,"n_rows":34,"n_cols":21,"rows_kept":34,"cut":false,"hidden":false,"merged":[]}
[]
[]
[]
[]
[]
[null,null,null,null,null,null,null,null,null,null,null,null,null,"Manager","Région","qCA 2021","Marché 2021","Renouv.","PM 2021","Evol","PDM"]
[null,null,null,null,null,null,null,null,null,null,null,null,null,"Sud-Est","Rhônes Alpes",819.70120749077205,3.7392324521322626,0.15674543289467391,104,7.8113429369400578E-2,0.40689039439245933]
[null,null,null,null,null,null,null,null,null,null,null,null,null,"Sud-Est","PACA Est",806.48178838942761,7.8715820643097736,0.73553704282711874,108,0.40638316560948851,0.45103042439099783]
[null,null,null,null,null,null,null,null,null,null,null,null,null,"Sud-Est","PACA Ouest",787.61505099000794,9.6633386173491225,0.34572982480248149,132,0.79357680231707983,0.94665916360332059]
[null,null,null,null,null,null,null,null,null,null,null,null,null,"Ouest","Paris Nord",750.48195365206152,8.666253077000011,0.83118410510490448,62,0.79894887786802671,0.14009195900556837]
[null,null,null,null,null,null,null,null,null,null,null,null,null,"Nord-Est","Nord",669.8721666152569,6.3756210112337577,0.44825561386379253,96,0.99211717733128402,0.91153591152876268]
[null,null,null,null,null,null,null,null,null,null,null,null,null,"Ouest","IDF Ouest",636.06952593263384,9.1231351827582596,0.40812672408628359,147,0.53766160968623267,0.26533692709505818]
[null,null,null,null,null,null,null,null,null,null,null,null,null,"Sud-Est","Midi-Pyrénées",593.99534357428297,7.647271706808743,0.97004739083847691,74,0.83542340347593824,0.35652629656686141]
[null,null,null,null,null,null,null,null,null,null,null,null,null,"Nord-Est","Bourgogne",589.92399197343559,1.8994875396418409,0.6732860311995138,112,4.6878444812675779E-3,0.55161847641312389]
[null,null,null,null,null,null,null,null,null,null,null,null,null,"Nord-Est","Reims",574.68584462958984,6.2511522889963311,0.10666368214424282,94,0.21762021713109347,0.47164558971113246]
[null,null,null,null,null,null,null,null,null,null,null,null,null,"Nord-Est","Paris Est",503.28797387911362,8.9659388245528842,0.56342323524691074,132,0.36922606400235469,0.19298949879030969]
[null,null,null,null,null,null,null,null,null,null,null,null,null,"Hors Secteur","Hors Secteur",494.52441789277202,8.95200206398777,0.17611246179724283,89,0.15679873214990836,0.68920711662697087]
[null,null,null,null,null,null,null,null,null,null,null,null,null,"Ouest","Normandie",475.56778553447543,7.2944888435691002,0.70629986118086385,78,0.69150071615744435,0.43093241037487084]
[null,null,null,null,null,null,null,null,null,null,null,null,null,"Ouest","Poitou Limousin",464.44434904771936,0.88200786582938395,0.86774767369749828,145,0.43365752493787613,0.46493558391968848]
[null,null,null,null,null,null,null,null,null,null,null,null,null,"Sud-Est","Savoie",418.18104728098837,2.5240087001968261,0.70677335982664791,76,0.71819433861104431,6.8001275014508589E-2]
[null,null,null,null,null,null,null,null,null,null,null,null,null,"Nord-Est","Est Sud",403.57939609521054,6.2434719573279356,0.17994184349312436,127,0.768714647219506,0.8725836472790145]
[null,null,null,null,null,null,null,null,null,null,null,null,null,"Nord-Est","Est Nord",388.23491485013693,2.0959584072619064,0.55922712896368054,147,0.21017837857165877,0.88391316541152798]
[null,null,null,null,null,null,null,null,null,null,null,null,null,"Ouest","Pays de Loire",327.31488686652943,3.9834256433598281,0.39516446435701735,115,0.27604301434592315,0.54843927590588837]
[null,null,null,null,null,null,null,null,null,null,null,null,null,"Sud-Est","Montpellier",172.8384202035561,6.422287841769343,0.23981072434265616,147,0.90450172988651845,0.95207656745941494]
[null,null,null,null,null,null,null,null,null,null,null,null,null,"Sud-Est","Paris Sud",158.19512806114145,0.67899250311427628,0.24006166146997743,90,0.60498773559462926,1.0887410957514554E-2]
[null,null,null,null,null,null,null,null,null,null,null,null,null,"Nord-Est","Lille",149.76369716530579,1.9744392384764353,0.99330040444571133,110,0.4261866783482251,5.8880335430794517E-2]
[null,null,null,null,null,null,null,null,null,null,null,null,null,"Ouest","Bretagne",138.54589213731938,1.1526698899133325,0.34241778769896103,64,3.2382780260213684E-2,0.94326055089202654]
[null,null,null,null,null,null,null,null,null,null,null,null,null,"Ouest","Centre Loire",131.38194602813991,3.4599291362376796,0.8934898822458337,136,0.60347363069057514,0.3292943197284306]
[null,null,null,null,null,null,null,null,null,null,null,null,null,"Ouest","Aquitaine",99.447425703928175,7.2521547308309096,0.65657054290888361,127,0.44509497757927285,7.907224886295483E-2]
[null,null,null,null,null,null,null,null,null,null,null,null,null,"Nord-Est","IDF Est",98.986252898665697,4.4802510022828832,0.35460437296645098,130,0.38065970983926367,0.50710196131650809]
[null,null,null,null,null,null,null,null,null,null,null,null,null,"Sud-Est","Vaucluse",25.596484668222953,7.8986183386165294,0.33684874988808911,91,0.80338771448217283,0.52678788961703937]
[null,null,null,null,null,null,null,null,null,null,null,null,null,"Total",{"$f":"SUBTOTAL(103,TableauDonnéesCarteUGA[Région])","v":25},{"$f":"SUBTOTAL(109,TableauDonnéesCarteUGA[qCA 2021])","v":10678.716891560693},{"$f":"SUBTOTAL(109,TableauDonnéesCarteUGA[Marché 2021])","v":135.49771892755712},{"$f":"SUBTOTAL(101,TableauDonnéesCarteUGA[Renouv.])","v":0.51549480009164161},{"$f":"SUBTOTAL(101,TableauDonnéesCarteUGA[PM 2021])","v":109.32},{"$f":"SUBTOTAL(101,TableauDonnéesCarteUGA[Evol])","v":0.49958083599785608},{"$f":"SUBTOTAL(101,TableauDonnéesCarteUGA[PDM])","v":0.48238793601178981}]
[null,null,null,null,null,null,null,null,null,null,null,null,null,"Moy. Région",{"$f":"COUNTA(TableauDonnéesCarteUGA[Région])","v":25},{"$f":"AVERAGE(TableauDonnéesCarteUGA[qCA 2021])","v":427.14867566242771},{"$f":"AVERAGE(TableauDonnéesCarteUGA[Marché 2021])","v":5.4199087571022844},{"$f":"AVERAGE(TableauDonnéesCarteUGA[Renouv.])","v":0.51549480009164161},{"$f":"AVERAGE(TableauDonnéesCarteUGA[PM 2021])","v":109.32},{"$f":"AVERAGE(TableauDonnéesCarteUGA[Evol])","v":0.49958083599785608},{"$f":"AVERAGE(TableauDonnéesCarteUGA[PDM])","v":0.48238793601178981}]
[null,null,null,null,null,null,null,null,null,null,null,null,null,"Total National",{"$f":"COUNTA(TableauDonnées[Commercial])","v":25},{"$f":"SUM(TableauDonnées[CA 2021])","v":10678.716891560693},{"$f":"SUM(TableauDonnées[Marché 2021])","v":135.49771892755712},{"$f":"AVERAGE(TableauDonnées[% renouvellement])","v":0.51549480009164161},{"$f":"AVERAGE(TableauDonnées[PM 2021])","v":109.32},{"$f":"AVERAGE(TableauDonnées[Evol])","v":0.49958083599785608},{"$f":"AVERAGE(TableauDonnées[PDM])","v":0.48238793601178992}]

{"sheet":"Listes","index":1,"n_rows":748,"n_cols":14,"rows_kept":748,"cut":false,"hidden":false,"merged":[]}
[]
[null,"UGA","Région","Manager","Département",null,"Département","Intitulé Département",null,"Manager","Couleur",null,"Rang","Couleur"]
[null,"01BEL","Savoie","Sud-Est",1,null,1,"Ain ",null,"Nord-Est",56,null,"1er",56]
[null,"01BOU","Est Sud","Nord-Est",1,null,2,"Aisne ",null,"Ouest",56,null,"2ème",56]
[null,"01GEX","Savoie","Sud-Est",1,null,3,"Allier ",null,"Sud-Est",56,null,"3ème",56]
[null,"01MIR","Rhônes Alpes","Sud-Est",1,null,4,"Alpes de Haute-Provence ",null,"Hors Secteur",56,null,"4ème",56]
[null,"01NAN","Savoie","Sud-Est",1,null,5,"Hautes-Alpes ",null,null,null,null,"5ème",56]
[null,"01TRE","Rhônes Alpes","Sud-Est",1,null,6,"Alpes-Maritimes ",null,null,null,null,"6ème",56]
[null,"02CHA","Reims","Nord-Est",2,null,7,"Ardèche ",null,"UGA","Couleur",null,"7ème",56]
[null,"02LAO","Reims","Nord-Est",2,null,8,"Ardennes ",null,"Couleur par défaut",56,null,"8ème",56]
[null,"02SOI","Reims","Nord-Est",2,null,9,"Ariège "]
[null,"02SQU","Nord","Nord-Est",2,null,10,"Aube "]
[null,"02VER","Reims","Nord-Est",2,null,11,"Aude "]
[null,"03COM","Bourgogne","Nord-Est",3,null,12,"Aveyron "]
[null,"03GAN","Bourgogne","Nord-Est",3,null,13,"Bouches-du-Rhône "]
[null,"03LAP","Bourgogne","Nord-Est",3,null,14,"Calvados "]
[null,"03MON","Bourgogne","Nord-Est",3,null,15,"Cantal "]
[null,"03MOU","Bourgogne","Nord-Est",3,null,16,"Charente "]
[null,"03VIC","Bourgogne","Nord-Est",3,null,17,"Charente-Maritime "]
[null,"04DIG","Vaucluse","Sud-Est",4,null,18,"Cher "]
[null,"04FOR","Vaucluse","Sud-Est",4,null,19,"Corrèze "]
[null,"05BRI","Vaucluse","Sud-Est",5,null,20,"Corse"]
[null,"05GAP","Vaucluse","Sud-Est",5,null,21,"Côte-d'Or "]
[null,"06ANT","PACA Est","Sud-Est",6,null,22,"Côtes d'Armor "]
[null,"06CA1","PACA Est","Sud-Est",6,null,23,"Creuse "]
[null,"06CA2","PACA Est","Sud-Est",6,null,24,"Dordogne "]
[null,"06CAG","PACA Est","Sud-Est",6,null,25,"Doubs "]
[null,"06CAR","Vaucluse","Sud-Est",6,null,26,"Drôme "]
[null,"06COL","PACA Est","Sud-Est",6,null,27,"Eure "]
[null,"06GRA","PACA Est","Sud-Est",6,null,28,"Eure-et-Loir "]
[null,"06LTR","PACA Est","Sud-Est",6,null,29,"Finistère "]
[null,"06MAN","PACA Est","Sud-Est",6,null,30,"Gard "]
[null,"06MEN","PACA Est","Sud-Est",6,null,31,"Haute-Garonne "]
[null,"06MON","PACA Est","Sud-Est",6,null,32,"Gers "]
[null,"06NC1","PACA Est","Sud-Est",6,null,33,"Gironde "]
[null,"06NC2","PACA Est","Sud-Est",6,null,34,"Hérault "]
[null,"06NC3","PACA Est","Sud-Est",6,null,35,"Île-et-Vilaine "]
[null,"06NC4","PACA Est","Sud-Est",6,null,36,"Indre "]
[null,"06NC5","PACA Est","Sud-Est",6,null,37,"Indre-et-Loire "]
[null,"06NC6","PACA Est","Sud-Est",6,null,38,"Isère "]
[null,"06NC7","PACA Est","Sud-Est",6,null,39,"Jura "]
[null,"06VAL","PACA Est","Sud-Est",6,null,40,"Landes "]
[null,"06VEN","PACA Est","Sud-Est",6,null,41,"Loir-et-Cher "]
[null,"07BOU","Vaucluse","Sud-Est",7,null,42,"Loire "]
[null,"07LAR","Vaucluse","Sud-Est",7,null,43,"Haute-Loire "]
[null,"07PRI","Vaucluse","Sud-Est",7,null,44,"Loire-Atlantique "]
[null,"07TOU","Rhônes Alpes","Sud-Est",7,null,45,"Loiret "]
[null,"08CHA","Reims","Nord-Est",8,null,46,"Lot "]
[null,"08RET","Reims","Nord-Est",8,null,47,"Lot-et-Garonne "]
[null,"08REV","Reims","Nord-Est",8,null,48,"Lozère "]
[null,"08SED","Reims","Nord-Est",8,null,49,"Maine-et-Loire "]
[null,"09FOI","Midi-Pyrénées","Sud-Est",9,null,50,"Manche "]
[null,"09PAM","Midi-Pyrénées","Sud-Est",9,null,51,"Marne "]
[null,"10BAR","Bourgogne","Nord-Est",10,null,52,"Haute-Marne "]
[null,"10ROM","Reims","Nord-Est",10,null,53,"Mayenne "]
[null,"10SJU","Bourgogne","Nord-Est",10,null,54,"Meurthe-et-Moselle "]
[null,"10TRO","Bourgogne","Nord-Est",10,null,55,"Meuse "]
[null,"11CAR","Midi-Pyrénées","Sud-Est",11,null,56,"Morbihan "]
[null,"11CAS","Midi-Pyrénées","Sud-Est",11,null,57,"Moselle "]
[null,"11LEZ","Montpellier","Sud-Est",11,null,58,"Nièvre "]
[null,"11LIM","Midi-Pyrénées","Sud-Est",11,null,59,"Nord "]
[null,"11NAR","Montpellier","Sud-Est",11,null,60,"Oise "]
[null,"12AUB","Poitou Limousin","Ouest",12,null,61,"Orne "]
[null,"12MIL","Midi-Pyrénées","Sud-Est",12,null,62,"Pas-de-Calais "]
[null,"12ROD","Midi-Pyrénées","Sud-Est",12,null,63,"Puy-de-Dôme "]
[null,"12VIL","Midi-Pyrénées","Sud-Est",12,null,64,"Pyrénées-Atlantiques "]
[null,"13AIX","PACA Ouest","Sud-Est",13,null,65,"Hautes-Pyrénées "]
[null,"13ALL","PACA Ouest","Sud-Est",13,null,66,"Pyrénées-Orientales "]
[null,"13ARL","Montpellier","Sud-Est",13,null,67,"Bas-Rhin "]
[null,"13AUB","PACA Ouest","Sud-Est",13,null,68,"Haut-Rhin "]
[null,"13BER","PACA Ouest","Sud-Est",13,null,69,"Rhône "]
[null,"13CHA","Vaucluse","Sud-Est",13,null,70,"Haute-Saône "]
[null,"13GAR","PACA Ouest","Sud-Est",13,null,71,"Saône-et-Loire "]
[null,"13IST","Montpellier","Sud-Est",13,null,72,"Sarthe "]
[null,"13LCI","PACA Ouest","Sud-Est",13,null,73,"Savoie "]
[null,"13M01","PACA Ouest","Sud-Est",13,null,74,"Haute-Savoie "]
[null,"13M02","PACA Ouest","Sud-Est",13,null,75,"Paris "]
[null,"13M03","PACA Ouest","Sud-Est",13,null,76,"Seine-Maritime "]
[null,"13M04","PACA Ouest","Sud-Est",13,null,77,"Seine-et-Marne "]
[null,"13M05","PACA Ouest","Sud-Est",13,null,78,"Yvelines "]
[null,"13M06","PACA Ouest","Sud-Est",13,null,79,"Deux-Sèvres "]
[null,"13M07","PACA Ouest","Sud-Est",13,null,80,"Somme "]
[null,"13M08","PACA Ouest","Sud-Est",13,null,81,"Tarn "]
[null,"13M09","PACA Ouest","Sud-Est",13,null,82,"Tarn-et-Garonne "]
[null,"13M10","PACA Ouest","Sud-Est",13,null,83,"Var "]
[null,"13M11","PACA Ouest","Sud-Est",13,null,84,"Vaucluse "]
[null,"13M12","PACA Ouest","Sud-Est",13,null,85,"Vendée "]
[null,"13MGN","PACA Ouest","Sud-Est",13,null,86,"Vienne "]
[null,"13MRT","PACA Ouest","Sud-Est",13,null,87,"Haute-Vienne "]
[null,"13SAL","PACA Ouest","Sud-Est",13,null,88,"Vosges "]
[null,"13VIT","PACA Ouest","Sud-Est",13,null,89,"Yonne "]
[null,"14BAY","Normandie","Ouest",14,null,90,"Territoire-de-Belfort "]
[null,"14CAE","Normandie","Ouest",14,null,91,"Essonne "]
[null,"14FAL","Normandie","Ouest",14,null,92,"Hauts-de-Seine "]
[null,"14HER","Normandie","Ouest",14,null,93,"Seine-Saint-Denis "]
[null,"14HON","Normandie","Ouest",14,null,94,"Val-de-Marne "]
[null,"14LIS","Normandie","Ouest",14,null,95,"Val-d'Oise "]
[null,"14MON","Normandie","Ouest",14]
[null,"14VIR","Normandie","Ouest",14]
[null,"15AUR","Poitou Limousin","Ouest",15]
[null,"15MAU","Poitou Limousin","Ouest",15]
[null,"15SFL","Poitou Limousin","Ouest",15]
[null,"16ANG","Poitou Limousin","Ouest",16]
[null,"16CHA","Poitou Limousin","Ouest",16]
[null,"16COG","Poitou Limousin","Ouest",16]
[null,"16CON","Poitou Limousin","Ouest",16]
[null,"16SOY","Poitou Limousin","Ouest",16]
[null,"16SYR","Poitou Limousin","Ouest",16]
[null,"17AYT","Poitou Limousin","Ouest",17]
[null,"17JON","Aquitaine","Ouest",17]
[null,"17LRO","Poitou Limousin","Ouest",17]
[null,"17ROC","Poitou Limousin","Ouest",17]
[null,"17ROY","Poitou Limousin","Ouest",17]
[null,"17SAI","Poitou Limousin","Ouest",17]
[null,"17SAU","Poitou Limousin","Ouest",17]
[null,"17SJE","Poitou Limousin","Ouest",17]
[null,"18BOU","Centre Loire","Ouest",18]
[null,"18SAM","Bourgogne","Nord-Est",18]
[null,"18SGE","Centre Loire","Ouest",18]
[null,"18VIE","Centre Loire","Ouest",18]
[null,"19BRI","Poitou Limousin","Ouest",19]
[null,"19TUL","Poitou Limousin","Ouest",19]
[null,"19USS","Poitou Limousin","Ouest",19]
[null,"20AJA","Hors Secteur","Hors Secteur",20]
[null,"20BAS","Hors Secteur","Hors Secteur",20]
[null,"20CAL","Hors Secteur","Hors Secteur",20]
[null,"20SAR","Hors Secteur","Hors Secteur",20]
[null,"21BEA","Bourgogne","Nord-Est",21]
[null,"21CHE","Bourgogne","Nord-Est",21]
[null,"21DIJ","Bourgogne","Nord-Est",21]
[null,"21GEN","Bourgogne","Nord-Est",21]
[null,"21MON","Bourgogne","Nord-Est",21]
[null,"21TAL","Bourgogne","Nord-Est",21]
[null,"22DIN","Bretagne","Ouest",22]
[null,"22GUI","Bretagne","Ouest",22]
[null,"22LAM","Bretagne","Ouest",22]
[null,"22LAN","Bretagne","Ouest",22]
[null,"22LOU","Bretagne","Ouest",22]
[null,"22PAI","Bretagne","Ouest",22]
[null,"22SBR","Bretagne","Ouest",22]
[null,"23AUB","Poitou Limousin","Ouest",23]
[null,"23GUE","Poitou Limousin","Ouest",23]
[null,"23LSO","Poitou Limousin","Ouest",23]
[null,"24BER","Aquitaine","Ouest",24]
[null,"24MON","Aquitaine","Ouest",24]
[null,"24NON","Poitou Limousin","Ouest",24]
[null,"24PER","Poitou Limousin","Ouest",24]
[null,"24RIB","Aquitaine","Ouest",24]
[null,"24SAR","Poitou Limousin","Ouest",24]
[null,"24THI","Poitou Limousin","Ouest",24]
[null,"25AUD","Est Sud","Nord-Est",25]
[null,"25BAU","Est Sud","Nord-Est",25]
[null,"25BES","Est Sud","Nord-Est",25]
[null,"25MIS","Est Sud","Nord-Est",25]
[null,"25MON","Est Sud","Nord-Est",25]
[null,"25MOR","Est Sud","Nord-Est",25]
[null,"25PON","Est Sud","Nord-Est",25]
[null,"26DIE","Vaucluse","Sud-Est",26]
[null,"26NYO","Vaucluse","Sud-Est",26]
[null,"26ROM","Vaucluse","Sud-Est",26]
[null,"26TAI","Vaucluse","Sud-Est",26]
[null,"26VAL","Vaucluse","Sud-Est",26]
[null,"27BER","Normandie","Ouest",27]
[null,"27EVR","Normandie","Ouest",27]
[null,"27LAN","Normandie","Ouest",27]
[null,"27LOU","Normandie","Ouest",27]
[null,"27PON","Normandie","Ouest",27]
[null,"27VER","IDF Ouest","Ouest",27]
[null,"28CHA","Centre Loire","Ouest",28]
[null,"28CHR","Centre Loire","Ouest",28]
[null,"28DRE","IDF Ouest","Ouest",28]
[null,"28NOG","Centre Loire","Ouest",28]
[null,"29BRE","Bretagne","Ouest",29]
[null,"29CHA","Bretagne","Ouest",29]
[null,"29CON","Bretagne","Ouest",29]
[null,"29DOU","Bretagne","Ouest",29]
[null,"29GUI","Bretagne","Ouest",29]
[null,"29LAN","Bretagne","Ouest",29]
[null,"29MOR","Bretagne","Ouest",29]
[null,"29PLO","Bretagne","Ouest",29]
[null,"29QUI","Bretagne","Ouest",29]
[null,"30ALE","Vaucluse","Sud-Est",30]
[null,"30BAG","Vaucluse","Sud-Est",30]
[null,"30BEA","Vaucluse","Sud-Est",30]
[null,"30BOU","Montpellier","Sud-Est",30]
[null,"30LVI","Montpellier","Sud-Est",30]
[null,"30NIM","Montpellier","Sud-Est",30]
[null,"30SCH","Montpellier","Sud-Est",30]
[null,"30SGI","Montpellier","Sud-Est",30]
[null,"31AUT","Midi-Pyrénées","Sud-Est",31]
[null,"31CAS","Midi-Pyrénées","Sud-Est",31]
[null,"31COL","Midi-Pyrénées","Sud-Est",31]
[null,"31LUN","Midi-Pyrénées","Sud-Est",31]
[null,"31MUR","Midi-Pyrénées","Sud-Est",31]
[null,"31PLA","Midi-Pyrénées","Sud-Est",31]
[null,"31RAM","Midi-Pyrénées","Sud-Est",31]
[null,"31SGA","Midi-Pyrénées","Sud-Est",31]
[null,"31TL1","Midi-Pyrénées","Sud-Est",31]
[null,"31TL2","Midi-Pyrénées","Sud-Est",31]
[null,"31TL3","Midi-Pyrénées","Sud-Est",31]
[null,"31TL4","Midi-Pyrénées","Sud-Est",31]
[null,"31TL5","Midi-Pyrénées","Sud-Est",31]
[null,"32AUC","Midi-Pyrénées","Sud-Est",32]
[null,"32CON","Midi-Pyrénées","Sud-Est",32]
[null,"32MIR","Aquitaine","Ouest",32]
[null,"33AMB","Aquitaine","Ouest",33]
[null,"33AND","Aquitaine","Ouest",33]
[null,"33ART","Aquitaine","Ouest",33]
[null,"33BD1","Aquitaine","Ouest",33]
[null,"33BD2","Aquitaine","Ouest",33]
[null,"33BD3","Aquitaine","Ouest",33]
[null,"33BLA","Aquitaine","Ouest",33]
[null,"33EYS","Aquitaine","Ouest",33]
[null,"33LAN","Aquitaine","Ouest",33]
[null,"33LBO","Aquitaine","Ouest",33]
[null,"33LES","Aquitaine","Ouest",33]
[null,"33LIB","Aquitaine","Ouest",33]
[null,"33LOR","Aquitaine","Ouest",33]
[null,"33LRE","Aquitaine","Ouest",33]
[null,"33LTE","Aquitaine","Ouest",33]
[null,"33MER","Aquitaine","Ouest",33]
[null,"33SME","Aquitaine","Ouest",33]
[null,"33TAL","Aquitaine","Ouest",33]
[null,"33VIL","Aquitaine","Ouest",33]
[null,"34AGD","Montpellier","Sud-Est",34]
[null,"34BED","Montpellier","Sud-Est",34]
[null,"34BEZ","Montpellier","Sud-Est",34]
[null,"34CAS","Montpellier","Sud-Est",34]
[null,"34JUV","Montpellier","Sud-Est",34]
[null,"34LOD","Montpellier","Sud-Est",34]
[null,"34LUN","Montpellier","Sud-Est",34]
[null,"34MAU","Montpellier","Sud-Est",34]
[null,"34MEZ","Montpellier","Sud-Est",34]
[null,"34MON","Montpellier","Sud-Est",34]
[null,"34SER","Montpellier","Sud-Est",34]
[null,"34SET","Montpellier","Sud-Est",34]
[null,"35BET","Bretagne","Ouest",35]
[null,"35BRU","Bretagne","Ouest",35]
[null,"35CES","Bretagne","Ouest",35]
[null,"35COM","Bretagne","Ouest",35]
[null,"35FOU","Bretagne","Ouest",35]
[null,"35RE1","Bretagne","Ouest",35]
[null,"35RE2","Bretagne","Ouest",35]
[null,"35RED","Bretagne","Ouest",35]
[null,"35SMA","Bretagne","Ouest",35]
[null,"35VIT","Bretagne","Ouest",35]
[null,"36CHA","Centre Loire","Ouest",36]
[null,"36ISS","Centre Loire","Ouest",36]
[null,"36LBL","Poitou Limousin","Ouest",36]
[null,"36LCH","Poitou Limousin","Ouest",36]
[null,"37AMB","Pays de Loire","Ouest",37]
[null,"37CHI","Pays de Loire","Ouest",37]
[null,"37JOU","Centre Loire","Ouest",37]
[null,"37LOC","Centre Loire","Ouest",37]
[null,"37SCY","Centre Loire","Ouest",37]
[null,"37TOU","Pays de Loire","Ouest",37]
[null,"38BOU","Savoie","Sud-Est",38]
[null,"38ECH","Savoie","Sud-Est",38]
[null,"38FON","Savoie","Sud-Est",38]
[null,"38GR1","Savoie","Sud-Est",38]
[null,"38GR2","Savoie","Sud-Est",38]
[null,"38LPO","Savoie","Sud-Est",38]
[null,"38LTO","Savoie","Sud-Est",38]
[null,"38MEY","Savoie","Sud-Est",38]
[null,"38ROU","Rhônes Alpes","Sud-Est",38]
[null,"38SMA","Rhônes Alpes","Sud-Est",38]
[null,"38VIE","Rhônes Alpes","Sud-Est",38]
[null,"38VIL","Savoie","Sud-Est",38]
[null,"38VOI","Savoie","Sud-Est",38]
[null,"39CHA","Est Sud","Nord-Est",39]
[null,"39DOL","Est Sud","Nord-Est",39]
[null,"39LON","Est Sud","Nord-Est",39]
[null,"39SCL","Est Sud","Nord-Est",39]
[null,"40BIS","Aquitaine","Ouest",40]
[null,"40DAX","Aquitaine","Ouest",40]
[null,"40HAG","Aquitaine","Ouest",40]
[null,"40MON","Aquitaine","Ouest",40]
[null,"40SOU","Aquitaine","Ouest",40]
[null,"41BLO","Centre Loire","Ouest",41]
[null,"41ROM","Centre Loire","Ouest",41]
[null,"41SAL","Centre Loire","Ouest",41]
[null,"41VEN","Centre Loire","Ouest",41]
[null,"42FEU","Rhônes Alpes","Sud-Est",42]
[null,"42FIR","Rhônes Alpes","Sud-Est",42]
[null,"42MON","Rhônes Alpes","Sud-Est",42]
[null,"42ROA","Rhônes Alpes","Sud-Est",42]
[null,"42SCH","Rhônes Alpes","Sud-Est",42]
[null,"42SE1","Rhônes Alpes","Sud-Est",42]
[null,"42SE2","Rhônes Alpes","Sud-Est",42]
[null,"42VIL","Rhônes Alpes","Sud-Est",42]
[null,"43LPU","Poitou Limousin","Ouest",43]
[null,"43YSS","Rhônes Alpes","Sud-Est",43]
[null,"44ANC","Pays de Loire","Ouest",44]
[null,"44CAR","Pays de Loire","Ouest",44]
[null,"44CHA","Pays de Loire","Ouest",44]
[null,"44LBA","Pays de Loire","Ouest",44]
[null,"44LSO","Pays de Loire","Ouest",44]
[null,"44NA1","Pays de Loire","Ouest",44]
[null,"44NA2","Pays de Loire","Ouest",44]
[null,"44PON","Pays de Loire","Ouest",44]
[null,"44POR","Pays de Loire","Ouest",44]
[null,"44REZ","Pays de Loire","Ouest",44]
[null,"44SHE","Pays de Loire","Ouest",44]
[null,"44SNA","Pays de Loire","Ouest",44]
[null,"44SSE","Pays de Loire","Ouest",44]
[null,"45FLE","Centre Loire","Ouest",45]
[null,"45GIE","Centre Loire","Ouest",45]
[null,"45LFE","Centre Loire","Ouest",45]
[null,"45MON","Centre Loire","Ouest",45]
[null,"45OLI","Centre Loire","Ouest",45]
[null,"45ORL","Centre Loire","Ouest",45]
[null,"45PIT","Centre Loire","Ouest",45]
[null,"46CAH","Midi-Pyrénées","Sud-Est",46]
[null,"46FIG","Poitou Limousin","Ouest",46]
[null,"47AGE","Midi-Pyrénées","Sud-Est",47]
[null,"47MAR","Aquitaine","Ouest",47]
[null,"47NER","Aquitaine","Ouest",47]
[null,"47VIL","Midi-Pyrénées","Sud-Est",47]
[null,"48MEN","Vaucluse","Sud-Est",48]
[null,"49ANG","Pays de Loire","Ouest",49]
[null,"49CHO","Pays de Loire","Ouest",49]
[null,"49DOU","Pays de Loire","Ouest",49]
[null,"49LPO","Pays de Loire","Ouest",49]
[null,"49SAU","Pays de Loire","Ouest",49]
[null,"49SEG","Pays de Loire","Ouest",49]
[null,"49SGE","Pays de Loire","Ouest",49]
[null,"50AVR","Bretagne","Ouest",50]
[null,"50CHE","Normandie","Ouest",50]
[null,"50COU","Normandie","Ouest",50]
[null,"50GRA","Bretagne","Ouest",50]
[null,"50SLO","Normandie","Ouest",50]
[null,"50VAL","Normandie","Ouest",50]
[null,"51BET","Reims","Nord-Est",51]
[null,"51CHA","Reims","Nord-Est",51]
[null,"51EPE","Reims","Nord-Est",51]
[null,"51REI","Reims","Nord-Est",51]
[null,"51SEZ","Reims","Nord-Est",51]
[null,"51TIN","Reims","Nord-Est",51]
[null,"51VIT","Reims","Nord-Est",51]
[null,"52CHA","Bourgogne","Nord-Est",52]
[null,"52SDI","Reims","Nord-Est",52]
[null,"53EVR","Bretagne","Ouest",53]
[null,"53LAV","Bretagne","Ouest",53]
[null,"53MAY","Bretagne","Ouest",53]
[null,"54BRI","Reims","Nord-Est",54]
[null,"54DOM","Est Nord","Nord-Est",54]
[null,"54LON","Reims","Nord-Est",54]
[null,"54LUN","Est Sud","Nord-Est",54]
[null,"54MAL","Est Nord","Nord-Est",54]
[null,"54NA1","Est Nord","Nord-Est",54]
[null,"54NA2","Est Nord","Nord-Est",54]
[null,"54NEU","Est Nord","Nord-Est",54]
[null,"54PON","Est Nord","Nord-Est",54]
[null,"54SMA","Est Nord","Nord-Est",54]
[null,"54TOU","Reims","Nord-Est",54]
[null,"54VAN","Est Nord","Nord-Est",54]
[null,"55BAR","Reims","Nord-Est",55]
[null,"55VER","Reims","Nord-Est",55]
[null,"56AUR","Bretagne","Ouest",56]
[null,"56LAN","Bretagne","Ouest",56]
[null,"56LOR","Bretagne","Ouest",56]
[null,"56PLO","Bretagne","Ouest",56]
[null,"56PLU","Bretagne","Ouest",56]
[null,"56PON","Bretagne","Ouest",56]
[null,"56QUE","Bretagne","Ouest",56]
[null,"56VAN","Bretagne","Ouest",56]
[null,"57BOU","Est Nord","Nord-Est",57]
[null,"57CHA","Est Nord","Nord-Est",57]
[null,"57FOR","Est Nord","Nord-Est",57]
[null,"57HAY","Est Nord","Nord-Est",57]
[null,"57MAR","Est Nord","Nord-Est",57]
[null,"57MET","Est Nord","Nord-Est",57]
[null,"57MON","Est Nord","Nord-Est",57]
[null,"57ROM","Est Nord","Nord-Est",57]
[null,"57SAV","Est Nord","Nord-Est",57]
[null,"57SRB","Est Nord","Nord-Est",57]
[null,"57SRG","Est Nord","Nord-Est",57]
[null,"57THI","Est Nord","Nord-Est",57]
[null,"58CLA","Bourgogne","Nord-Est",58]
[null,"58DEC","Bourgogne","Nord-Est",58]
[null,"58NEV","Bourgogne","Nord-Est",58]
[null,"59ANI","Nord","Nord-Est",59]
[null,"59ARM","Lille","Nord-Est",59]
[null,"59AVE","Reims","Nord-Est",59]
[null,"59CAM","Nord","Nord-Est",59]
[null,"59CAP","Nord","Nord-Est",59]
[null,"59CAU","Reims","Nord-Est",59]
[null,"59COU","Nord","Nord-Est",59]
[null,"59DEN","Lille","Nord-Est",59]
[null,"59DOU","Lille","Nord-Est",59]
[null,"59DUN","Nord","Nord-Est",59]
[null,"59GRA","Nord","Nord-Est",59]
[null,"59HAL","Lille","Nord-Est",59]
[null,"59HAU","Reims","Nord-Est",59]
[null,"59HAZ","Nord","Nord-Est",59]
[null,"59LAM","Lille","Nord-Est",59]
[null,"59LIL","Lille","Nord-Est",59]
[null,"59LMA","Lille","Nord-Est",59]
[null,"59MAR","Reims","Nord-Est",59]
[null,"59MAU","Reims","Nord-Est",59]
[null,"59MON","Lille","Nord-Est",59]
[null,"59MRB","Lille","Nord-Est",59]
[null,"59ORC","Lille","Nord-Est",59]
[null,"59RON","Lille","Nord-Est",59]
[null,"59ROU","Lille","Nord-Est",59]
[null,"59SAM","Lille","Nord-Est",59]
[null,"59TOU","Lille","Nord-Est",59]
[null,"59VAL","Lille","Nord-Est",59]
[null,"59VIL","Lille","Nord-Est",59]
[null,"59WTG","Lille","Nord-Est",59]
[null,"59WTR","Lille","Nord-Est",59]
[null,"60BEA","Nord","Nord-Est",60]
[null,"60CHA","IDF Est","Nord-Est",60]
[null,"60CLE","Nord","Nord-Est",60]
[null,"60COM","IDF Est","Nord-Est",60]
[null,"60CRE","IDF Est","Nord-Est",60]
[null,"60MER","Nord","Nord-Est",60]
[null,"60NOY","Nord","Nord-Est",60]
[null,"60SEN","IDF Est","Nord-Est",60]
[null,"61ALE","Bretagne","Ouest",61]
[null,"61FLE","Bretagne","Ouest",61]
[null,"61MOR","Normandie","Ouest",61]
[null,"62ARR","Nord","Nord-Est",62]
[null,"62AUC","Lille","Nord-Est",62]
[null,"62BER","Nord","Nord-Est",62]
[null,"62BET","Lille","Nord-Est",62]
[null,"62BOU","Nord","Nord-Est",62]
[null,"62BRU","Lille","Nord-Est",62]
[null,"62BUL","Lille","Nord-Est",62]
[null,"62CAL","Nord","Nord-Est",62]
[null,"62CAR","Lille","Nord-Est",62]
[null,"62HEN","Lille","Nord-Est",62]
[null,"62LEN","Lille","Nord-Est",62]
[null,"62MAR","Nord","Nord-Est",62]
[null,"62MON","Nord","Nord-Est",62]
[null,"62OIG","Lille","Nord-Est",62]
[null,"62SMA","Nord","Nord-Est",62]
[null,"62SOM","Nord","Nord-Est",62]
[null,"62SPO","Nord","Nord-Est",62]
[null,"62VIT","Nord","Nord-Est",62]
[null,"63AMB","Poitou Limousin","Ouest",63]
[null,"63BEA","Poitou Limousin","Ouest",63]
[null,"63CLE","Poitou Limousin","Ouest",63]
[null,"63COU","Poitou Limousin","Ouest",63]
[null,"63GER","Poitou Limousin","Ouest",63]
[null,"63RIO","Poitou Limousin","Ouest",63]
[null,"63SEL","Poitou Limousin","Ouest",63]
[null,"63THI","Poitou Limousin","Ouest",63]
[null,"64ANG","Aquitaine","Ouest",64]
[null,"64BAY","Aquitaine","Ouest",64]
[null,"64BIL","Aquitaine","Ouest",64]
[null,"64HAS","Aquitaine","Ouest",64]
[null,"64OLO","Aquitaine","Ouest",64]
[null,"64ORT","Aquitaine","Ouest",64]
[null,"64PAU","Aquitaine","Ouest",64]
[null,"64SJE","Aquitaine","Ouest",64]
[null,"65BAG","Aquitaine","Ouest",65]
[null,"65LAN","Aquitaine","Ouest",65]
[null,"65TAR","Aquitaine","Ouest",65]
[null,"66CAN","Montpellier","Sud-Est",66]
[null,"66CER","Montpellier","Sud-Est",66]
[null,"66PE1","Montpellier","Sud-Est",66]
[null,"66PE2","Montpellier","Sud-Est",66]
[null,"66PRA","Montpellier","Sud-Est",66]
[null,"66SLA","Montpellier","Sud-Est",66]
[null,"67BRU","Est Nord","Nord-Est",67]
[null,"67HAG","Est Nord","Nord-Est",67]
[null,"67ILL","Est Nord","Nord-Est",67]
[null,"67LIN","Est Nord","Nord-Est",67]
[null,"67MOL","Est Nord","Nord-Est",67]
[null,"67OBE","Est Sud","Nord-Est",67]
[null,"67SAV","Est Nord","Nord-Est",67]
[null,"67SCH","Est Nord","Nord-Est",67]
[null,"67SEL","Est Sud","Nord-Est",67]
[null,"67ST1","Est Nord","Nord-Est",67]
[null,"67ST2","Est Nord","Nord-Est",67]
[null,"67WIS","Est Nord","Nord-Est",67]
[null,"68ALT","Est Sud","Nord-Est",68]
[null,"68COL","Est Sud","Nord-Est",68]
[null,"68ILL","Est Sud","Nord-Est",68]
[null,"68MUL","Est Sud","Nord-Est",68]
[null,"68RIB","Est Sud","Nord-Est",68]
[null,"68RIE","Est Sud","Nord-Est",68]
[null,"68SLO","Est Sud","Nord-Est",68]
[null,"68THA","Est Sud","Nord-Est",68]
[null,"68WIT","Est Sud","Nord-Est",68]
[null,"69BEL","Rhônes Alpes","Sud-Est",69]
[null,"69CAL","Rhônes Alpes","Sud-Est",69]
[null,"69ECU","Rhônes Alpes","Sud-Est",69]
[null,"69GIV","Rhônes Alpes","Sud-Est",69]
[null,"69LY1","Rhônes Alpes","Sud-Est",69]
[null,"69LY2","Rhônes Alpes","Sud-Est",69]
[null,"69LY3","Rhônes Alpes","Sud-Est",69]
[null,"69LY4","Rhônes Alpes","Sud-Est",69]
[null,"69LY5","Rhônes Alpes","Sud-Est",69]
[null,"69LY6","Rhônes Alpes","Sud-Est",69]
[null,"69MEY","Savoie","Sud-Est",69]
[null,"69OUL","Rhônes Alpes","Sud-Est",69]
[null,"69SFO","Rhônes Alpes","Sud-Est",69]
[null,"69SPR","Rhônes Alpes","Sud-Est",69]
[null,"69TAR","Rhônes Alpes","Sud-Est",69]
[null,"69VAU","Rhônes Alpes","Sud-Est",69]
[null,"69VEN","Rhônes Alpes","Sud-Est",69]
[null,"69VFS","Rhônes Alpes","Sud-Est",69]
[null,"69VLB","Rhônes Alpes","Sud-Est",69]
[null,"70ARC","Bourgogne","Nord-Est",70]
[null,"70GRA","Est Sud","Nord-Est",70]
[null,"70VES","Est Sud","Nord-Est",70]
[null,"71AUT","Bourgogne","Nord-Est",71]
[null,"71CHR","Bourgogne","Nord-Est",71]
[null,"71CHS","Bourgogne","Nord-Est",71]
[null,"71LCR","Bourgogne","Nord-Est",71]
[null,"71LOU","Bourgogne","Nord-Est",71]
[null,"71MAC","Bourgogne","Nord-Est",71]
[null,"71MON","Bourgogne","Nord-Est",71]
[null,"72ALL","Pays de Loire","Ouest",72]
[null,"72ARN","Centre Loire","Ouest",72]
[null,"72LFE","Centre Loire","Ouest",72]
[null,"72LFL","Pays de Loire","Ouest",72]
[null,"72LM1","Centre Loire","Ouest",72]
[null,"72LM2","Centre Loire","Ouest",72]
[null,"72MAM","Centre Loire","Ouest",72]
[null,"73AIX","Savoie","Sud-Est",73]
[null,"73ALB","Savoie","Sud-Est",73]
[null,"73CHA","Savoie","Sud-Est",73]
[null,"73SJE","Savoie","Sud-Est",73]
[null,"74ANM","Savoie","Sud-Est",74]
[null,"74ANY","Savoie","Sud-Est",74]
[null,"74BON","Savoie","Sud-Est",74]
[null,"74CLU","Savoie","Sud-Est",74]
[null,"74SJU","Savoie","Sud-Est",74]
[null,"74THO","Savoie","Sud-Est",74]
[null,"75ALE","Paris Sud","Sud-Est",75]
[null,"75AUT","Paris Nord","Ouest",75]
[null,"75CHA","Paris Nord","Ouest",75]
[null,"75CHE","Paris Sud","Sud-Est",75]
[null,"75CLI","Paris Nord","Ouest",75]
[null,"75DAU","Paris Sud","Sud-Est",75]
[null,"75DEN","Paris Sud","Sud-Est",75]
[null,"75ELY","Paris Nord","Ouest",75]
[null,"75GRE","Paris Sud","Sud-Est",75]
[null,"75HAL","Paris Nord","Ouest",75]
[null,"75INV","Paris Sud","Sud-Est",75]
[null,"75ITA","Paris Sud","Sud-Est",75]
[null,"75LYO","Paris Sud","Sud-Est",75]
[null,"75MMT","Paris Nord","Ouest",75]
[null,"75MNP","Paris Sud","Sud-Est",75]
[null,"75MON","Paris Est","Nord-Est",75]
[null,"75NAT","Paris Sud","Sud-Est",75]
[null,"75NOR","Paris Nord","Ouest",75]
[null,"75ODE","Paris Sud","Sud-Est",75]
[null,"75PAN","Paris Sud","Sud-Est",75]
[null,"75PAS","Paris Nord","Ouest",75]
[null,"75PER","Paris Nord","Ouest",75]
[null,"75PIG","Paris Nord","Ouest",75]
[null,"75PRE","Paris Nord","Ouest",75]
[null,"75PYR","Paris Nord","Ouest",75]
[null,"75REP","Paris Nord","Ouest",75]
[null,"75SLA","Paris Nord","Ouest",75]
[null,"75SMA","Paris Nord","Ouest",75]
[null,"75TEM","Paris Nord","Ouest",75]
[null,"75TER","Paris Nord","Ouest",75]
[null,"75TRO","Paris Nord","Ouest",75]
[null,"75VAU","Paris Sud","Sud-Est",75]
[null,"75VIL","Paris Nord","Ouest",75]
[null,"76BAR","Normandie","Ouest",76]
[null,"76BIH","Normandie","Ouest",76]
[null,"76DAR","Normandie","Ouest",76]
[null,"76DIE","Normandie","Ouest",76]
[null,"76ELB","Normandie","Ouest",76]
[null,"76FEC","Normandie","Ouest",76]
[null,"76LHA","Normandie","Ouest",76]
[null,"76LTR","Nord","Nord-Est",76]
[null,"76MON","Normandie","Ouest",76]
[null,"76MSA","Normandie","Ouest",76]
[null,"76NEU","Normandie","Ouest",76]
[null,"76ROU","Normandie","Ouest",76]
[null,"76SAD","Normandie","Ouest",76]
[null,"76SET","Normandie","Ouest",76]
[null,"77CHE","IDF Est","Nord-Est",77]
[null,"77CLA","IDF Est","Nord-Est",77]
[null,"77COM","IDF Est","Nord-Est",77]
[null,"77COU","IDF Est","Nord-Est",77]
[null,"77FON","Centre Loire","Ouest",77]
[null,"77LAG","IDF Est","Nord-Est",77]
[null,"77MEA","IDF Est","Nord-Est",77]
[null,"77MEL","IDF Est","Nord-Est",77]
[null,"77MON","IDF Est","Nord-Est",77]
[null,"77NEM","Centre Loire","Ouest",77]
[null,"77OZO","IDF Est","Nord-Est",77]
[null,"77PON","Paris Est","Nord-Est",77]
[null,"77PRO","IDF Est","Nord-Est",77]
[null,"77TOR","Paris Est","Nord-Est",77]
[null,"78CHA","IDF Ouest","Ouest",78]
[null,"78CON","IDF Ouest","Ouest",78]
[null,"78LCE","IDF Ouest","Ouest",78]
[null,"78LMU","IDF Ouest","Ouest",78]
[null,"78MAN","IDF Ouest","Ouest",78]
[null,"78MON","Paris Sud","Sud-Est",78]
[null,"78PLA","IDF Ouest","Ouest",78]
[null,"78POI","IDF Ouest","Ouest",78]
[null,"78RAM","IDF Ouest","Ouest",78]
[null,"78SAR","IDF Ouest","Ouest",78]
[null,"78SGE","IDF Ouest","Ouest",78]
[null,"78TRA","IDF Ouest","Ouest",78]
[null,"78VEL","Paris Sud","Sud-Est",78]
[null,"78VER","Paris Sud","Sud-Est",78]
[null,"79BRE","Pays de Loire","Ouest",79]
[null,"79CHA","Poitou Limousin","Ouest",79]
[null,"79NIO","Pays de Loire","Ouest",79]
[null,"79PAR","Pays de Loire","Ouest",79]
[null,"79SMA","Poitou Limousin","Ouest",79]
[null,"79THO","Pays de Loire","Ouest",79]
[null,"80ABB","Nord","Nord-Est",80]
[null,"80AMI","Nord","Nord-Est",80]
[null,"80CAM","Nord","Nord-Est",80]
[null,"80DOU","Nord","Nord-Est",80]
[null,"80FRI","Nord","Nord-Est",80]
[null,"80LON","Nord","Nord-Est",80]
[null,"80MON","Nord","Nord-Est",80]
[null,"80PER","Nord","Nord-Est",80]
[null,"81ALB","Midi-Pyrénées","Sud-Est",81]
[null,"81CAR","Midi-Pyrénées","Sud-Est",81]
[null,"81CAS","Midi-Pyrénées","Sud-Est",81]
[null,"81GRA","Midi-Pyrénées","Sud-Est",81]
[null,"82CAS","Midi-Pyrénées","Sud-Est",82]
[null,"82MON","Midi-Pyrénées","Sud-Est",82]
[null,"83BRI","PACA Est","Sud-Est",83]
[null,"83DRA","PACA Est","Sud-Est",83]
[null,"83FRE","PACA Est","Sud-Est",83]
[null,"83HYE","PACA Est","Sud-Est",83]
[null,"83LCR","PACA Est","Sud-Est",83]
[null,"83LGA","PACA Est","Sud-Est",83]
[null,"83LLO","PACA Est","Sud-Est",83]
[null,"83LSE","PACA Est","Sud-Est",83]
[null,"83SAN","PACA Est","Sud-Est",83]
[null,"83SMA","PACA Est","Sud-Est",83]
[null,"83TL1","PACA Est","Sud-Est",83]
[null,"83TL2","PACA Est","Sud-Est",83]
[null,"83TL3","PACA Est","Sud-Est",83]
[null,"84APT","Vaucluse","Sud-Est",84]
[null,"84AVI","Vaucluse","Sud-Est",84]
[null,"84CAR","Vaucluse","Sud-Est",84]
[null,"84CAV","Vaucluse","Sud-Est",84]
[null,"84ORA","Vaucluse","Sud-Est",84]
[null,"84PER","Vaucluse","Sud-Est",84]
[null,"84SOR","Vaucluse","Sud-Est",84]
[null,"85CHL","Pays de Loire","Ouest",85]
[null,"85CHT","Pays de Loire","Ouest",85]
[null,"85FON","Pays de Loire","Ouest",85]
[null,"85LHE","Pays de Loire","Ouest",85]
[null,"85LRO","Pays de Loire","Ouest",85]
[null,"85LSA","Pays de Loire","Ouest",85]
[null,"85MOR","Pays de Loire","Ouest",85]
[null,"85SHI","Pays de Loire","Ouest",85]
[null,"86CHA","Centre Loire","Ouest",86]
[null,"86CHV","Poitou Limousin","Ouest",86]
[null,"86LOU","Pays de Loire","Ouest",86]
[null,"86MON","Poitou Limousin","Ouest",86]
[null,"86POI","Poitou Limousin","Ouest",86]
[null,"86SBE","Poitou Limousin","Ouest",86]
[null,"87BEL","Poitou Limousin","Ouest",87]
[null,"87LIM","Poitou Limousin","Ouest",87]
[null,"87PAN","Poitou Limousin","Ouest",87]
[null,"87ROC","Poitou Limousin","Ouest",87]
[null,"87SYR","Poitou Limousin","Ouest",87]
[null,"88EPI","Est Sud","Nord-Est",88]
[null,"88NEU","Reims","Nord-Est",88]
[null,"88REM","Est Sud","Nord-Est",88]
[null,"88SDI","Est Sud","Nord-Est",88]
[null,"88THA","Est Sud","Nord-Est",88]
[null,"89AUX","Bourgogne","Nord-Est",89]
[null,"89AVA","Bourgogne","Nord-Est",89]
[null,"89JOI","Bourgogne","Nord-Est",89]
[null,"89SEN","Bourgogne","Nord-Est",89]
[null,"89TOU","Bourgogne","Nord-Est",89]
[null,"90BEL","Est Sud","Nord-Est",90]
[null,"90DEL","Est Sud","Nord-Est",90]
[null,"91BRE","IDF Est","Nord-Est",91]
[null,"91COU","IDF Est","Nord-Est",91]
[null,"91DRA","IDF Est","Nord-Est",91]
[null,"91ETA","IDF Est","Nord-Est",91]
[null,"91EVR","IDF Est","Nord-Est",91]
[null,"91GIF","Paris Sud","Sud-Est",91]
[null,"91LON","Paris Sud","Sud-Est",91]
[null,"91MAS","Paris Sud","Sud-Est",91]
[null,"91PAL","Paris Sud","Sud-Est",91]
[null,"91SAV","Paris Sud","Sud-Est",91]
[null,"91SGE","Paris Sud","Sud-Est",91]
[null,"91VIR","Paris Sud","Sud-Est",91]
[null,"91YER","IDF Est","Nord-Est",91]
[null,"92ANT","Paris Sud","Sud-Est",92]
[null,"92ASN","Paris Nord","Ouest",92]
[null,"92BAG","Paris Sud","Sud-Est",92]
[null,"92BOU","Paris Sud","Sud-Est",92]
[null,"92CHA","Paris Sud","Sud-Est",92]
[null,"92CLA","Paris Sud","Sud-Est",92]
[null,"92CLI","Paris Nord","Ouest",92]
[null,"92COL","Paris Nord","Ouest",92]
[null,"92COU","Paris Nord","Ouest",92]
[null,"92GEN","Paris Nord","Ouest",92]
[null,"92ISS","Paris Sud","Sud-Est",92]
[null,"92LEV","Paris Nord","Ouest",92]
[null,"92MEU","Paris Sud","Sud-Est",92]
[null,"92MON","Paris Sud","Sud-Est",92]
[null,"92NAN","IDF Ouest","Ouest",92]
[null,"92NEU","Paris Nord","Ouest",92]
[null,"92RUE","IDF Ouest","Ouest",92]
[null,"92SCL","Paris Sud","Sud-Est",92]
[null,"93AUB","Paris Nord","Ouest",93]
[null,"93AUL","IDF Est","Nord-Est",93]
[null,"93BOB","Paris Est","Nord-Est",93]
[null,"93BON","Paris Est","Nord-Est",93]
[null,"93EPI","Paris Nord","Ouest",93]
[null,"93LBL","Paris Nord","Ouest",93]
[null,"93LIV","Paris Est","Nord-Est",93]
[null,"93LRA","Paris Est","Nord-Est",93]
[null,"93MON","Paris Est","Nord-Est",93]
[null,"93NOI","Paris Est","Nord-Est",93]
[null,"93PAN","Paris Est","Nord-Est",93]
[null,"93ROS","Paris Est","Nord-Est",93]
[null,"93SDE","Paris Nord","Ouest",93]
[null,"93SOU","Paris Nord","Ouest",93]
[null,"93STA","Paris Nord","Ouest",93]
[null,"93TRE","IDF Est","Nord-Est",93]
[null,"94CHA","Paris Est","Nord-Est",94]
[null,"94CHO","Paris Sud","Sud-Est",94]
[null,"94CRE","Paris Est","Nord-Est",94]
[null,"94IVR","Paris Sud","Sud-Est",94]
[null,"94LHA","Paris Sud","Sud-Est",94]
[null,"94MAI","Paris Est","Nord-Est",94]
[null,"94NOG","Paris Est","Nord-Est",94]
[null,"94SMA","Paris Est","Nord-Est",94]
[null,"94SUC","Paris Est","Nord-Est",94]
[null,"94VIL","Paris Sud","Sud-Est",94]
[null,"94VIN","Paris Est","Nord-Est",94]
[null,"94VIT","Paris Sud","Sud-Est",94]
[null,"94VSG","Paris Est","Nord-Est",94]
[null,"95ARG","Paris Nord","Ouest",95]
[null,"95ERM","IDF Ouest","Ouest",95]
[null,"95FRA","IDF Ouest","Ouest",95]
[null,"95GAR","IDF Ouest","Ouest",95]
[null,"95GOU","IDF Est","Nord-Est",95]
[null,"95MON","IDF Ouest","Ouest",95]
[null,"95PER","IDF Est","Nord-Est",95]
[null,"95PON","IDF Ouest","Ouest",95]
[null,"95SAR","IDF Ouest","Ouest",95]
[null,"95TAV","IDF Ouest","Ouest",95]

{"sheet":"Données","index":2,"n_rows":26,"n_cols":8,"rows_kept":26,"cut":false,"hidden":false,"merged":[]}
["Manager","Commercial","CA 2021","Marché 2021","% renouvellement","PM 2021","Evol","PDM"]
["Nord-Est","Bourgogne",589.92399197343559,1.8994875396418409,0.6732860311995138,112,4.6878444812675779E-3,0.55161847641312389]
["Nord-Est","Est Nord",388.23491485013693,2.0959584072619064,0.55922712896368054,147,0.21017837857165877,0.88391316541152798]
["Nord-Est","Est Sud",403.57939609521054,6.2434719573279356,0.17994184349312436,127,0.768714647219506,0.8725836472790145]
["Nord-Est","IDF Est",98.986252898665697,4.4802510022828832,0.35460437296645098,130,0.38065970983926367,0.50710196131650809]
["Nord-Est","Lille",149.76369716530579,1.9744392384764353,0.99330040444571133,110,0.4261866783482251,5.8880335430794517E-2]
["Nord-Est","Nord",669.8721666152569,6.3756210112337577,0.44825561386379253,96,0.99211717733128402,0.91153591152876268]
["Nord-Est","Paris Est",503.28797387911362,8.9659388245528842,0.56342323524691074,132,0.36922606400235469,0.19298949879030969]
["Nord-Est","Reims",574.68584462958984,6.2511522889963311,0.10666368214424282,94,0.21762021713109347,0.47164558971113246]
["Ouest","Aquitaine",99.447425703928175,7.2521547308309096,0.65657054290888361,127,0.44509497757927285,7.907224886295483E-2]
["Ouest","Bretagne",138.54589213731938,1.1526698899133325,0.34241778769896103,64,3.2382780260213684E-2,0.94326055089202654]
["Ouest","Centre Loire",131.38194602813991,3.4599291362376796,0.8934898822458337,136,0.60347363069057514,0.3292943197284306]
["Ouest","IDF Ouest",636.06952593263384,9.1231351827582596,0.40812672408628359,147,0.53766160968623267,0.26533692709505818]
["Ouest","Normandie",475.56778553447543,7.2944888435691002,0.70629986118086385,78,0.69150071615744435,0.43093241037487084]
["Ouest","Paris Nord",750.48195365206152,8.666253077000011,0.83118410510490448,62,0.79894887786802671,0.14009195900556837]
["Ouest","Pays de Loire",327.31488686652943,3.9834256433598281,0.39516446435701735,115,0.27604301434592315,0.54843927590588837]
["Ouest","Poitou Limousin",464.44434904771936,0.88200786582938395,0.86774767369749828,145,0.43365752493787613,0.46493558391968848]
["Sud-Est","Midi-Pyrénées",593.99534357428297,7.647271706808743,0.97004739083847691,74,0.83542340347593824,0.35652629656686141]
["Sud-Est","Montpellier",172.8384202035561,6.422287841769343,0.23981072434265616,147,0.90450172988651845,0.95207656745941494]
["Sud-Est","PACA Est",806.48178838942761,7.8715820643097736,0.73553704282711874,108,0.40638316560948851,0.45103042439099783]
["Sud-Est","PACA Ouest",787.61505099000794,9.6633386173491225,0.34572982480248149,132,0.79357680231707983,0.94665916360332059]
["Sud-Est","Paris Sud",158.19512806114145,0.67899250311427628,0.24006166146997743,90,0.60498773559462926,1.0887410957514554E-2]
["Sud-Est","Rhônes Alpes",819.70120749077205,3.7392324521322626,0.15674543289467391,104,7.8113429369400578E-2,0.40689039439245933]
["Sud-Est","Savoie",418.18104728098837,2.5240087001968261,0.70677335982664791,76,0.71819433861104431,6.8001275014508589E-2]
["Sud-Est","Vaucluse",25.596484668222953,7.8986183386165294,0.33684874988808911,91,0.80338771448217283,0.52678788961703937]
["Hors Secteur","Hors Secteur",494.52441789277202,8.95200206398777,0.17611246179724283,89,0.15679873214990836,0.68920711662697087]